fUST/lending_fUST_20250828
["ID","MTS","AMOUNT","RATE_DAILY","PERIOD"]
[381794515,1756350658272,-151.0,0.00021345,2]
[381794516,1756350658281,-407.792203,0.00021345,2]
[381794517,1756350658291,-407.792203,0.00021345,2]
[381794518,1756350658305,-407.792203,0.00021345,2]
[381794519,1756350658315,-480.0,0.00021345,2]
[381794520,1756350658327,-549.15,0.00021345,2]
[381794521,1756350658338,-407.792203,0.00021345,2]
[381794522,1756350658348,-180.425793,0.00021345,2]
[381794523,1756350658357,-180.425793,0.00021345,2]
[381794524,1756350658367,-180.425793,0.00021345,2]
[381794525,1756350658378,-151.0,0.00021345,2]
[381794526,1756350658388,-482.02212423,0.00021345,2]
[381794527,1756350658397,-180.425793,0.00021345,2]
[381794528,1756350658408,-151.0,0.00021345,2]
[381794529,1756350658419,-151.0,0.00021345,2]
[381794530,1756350658428,-480.0,0.00021345,2]
[381794531,1756350658439,-151.0,0.00021345,2]
[381794532,1756350658448,-943.286079,0.00021345,2]
[381794533,1756350658458,-480.0,0.00021345,2]
[381794534,1756350658467,-611.38,0.00021345,2]
[381794535,1756350658477,-271.424916,0.00021345,2]
[381794536,1756350658488,-271.424916,0.00021345,2]
[381794537,1756350658499,-480.0,0.00021345,2]
[381794538,1756350658508,-480.0,0.00021345,2]
[381794539,1756350658518,-1340.63,0.00021345,2]
[381794540,1756350658528,-151.0,0.00021345,2]
[381794541,1756350658537,-1033.14,0.00021345,2]
[381794542,1756350658547,-271.424916,0.00021345,2]
[381794543,1756350658556,-151.0,0.00021345,2]
[381794544,1756350658566,-271.424916,0.00021345,2]
[381794545,1756350658575,-469.29085849,0.00021345,2]
[381794546,1756350658584,-1554.1,0.00021345,2]
[381794547,1756350658594,-480.0,0.00021345,2]
[381794548,1756350658605,-890.68,0.00021345,2]
[381794549,1756350658615,-463.10880488,0.00021345,2]
[381794550,1756350658624,-1268.88,0.00021345,2]
[381794551,1756350658634,-530.66,0.00021345,2]
[381794552,1756350658643,-480.0,0.00021345,2]
[381794553,1756350658653,-480.0,0.00021345,2]
[381794554,1756350658664,-480.0,0.00021345,2]
[381794555,1756350658675,-480.0,0.00021345,2]
[381794556,1756350658684,-480.0,0.00021345,2]
[381794557,1756350658693,-480.0,0.00021345,2]
[381794558,1756350658706,-480.0,0.00021345,2]
[381794559,1756350658716,-494.94,0.00021345,2]
[381794560,1756350658725,-480.0,0.00021345,2]
[381794561,1756350658735,-588.22,0.00021345,2]
[381794562,1756350658746,-480.0,0.00021345,2]
[381794563,1756350658755,-480.0,0.00021345,2]
[381794564,1756350658764,-480.0,0.00021345,2]
[381794565,1756350658775,-480.0,0.00021345,2]
[381794566,1756350658785,-480.0,0.00021345,2]
[381794567,1756350658794,-480.0,0.00021345,2]
[381794568,1756350658804,-820.12,0.00021345,2]
[381794569,1756350658814,-1684.16,0.00021345,2]
[381794570,1756350658823,-480.0,0.00021345,2]
[381794571,1756350658832,-480.0,0.00021345,2]
[381794572,1756350658841,-480.0,0.00021345,2]
[381794573,1756350658853,-548.41,0.00021345,2]
[381794574,1756350658863,-480.0,0.00021345,2]
[381794575,1756350658874,-480.0,0.00021345,2]
[381794576,1756350658884,-657.37,0.00021345,2]
[381794577,1756350658893,-731.86,0.00021345,2]
[381794578,1756350658902,-480.0,0.00021345,2]
[381794579,1756350658911,-756.92,0.00021345,2]
[381794580,1756350658920,-480.0,0.00021345,2]
[381794581,1756350658930,-480.0,0.00021345,2]
[381794582,1756350658939,-480.0,0.00021345,2]
[381794583,1756350658950,-480.0,0.00021345,2]
[381794584,1756350658961,-564.49,0.00021345,2]
[381794585,1756350658970,-152.9354933,0.00021345,2]
[381794586,1756350658980,-480.0,0.00021345,2]
[381794587,1756350658989,-480.0,0.00021345,2]
[381794588,1756350658999,-480.0,0.00021345,2]
[381794589,1756350659008,-480.0,0.00021345,2]
[381794590,1756350659017,-480.0,0.00021345,2]
[381794591,1756350659027,-480.0,0.00021345,2]
[381794592,1756350659036,-480.0,0.00021345,2]
[381794593,1756350659045,-1628.6,0.00021345,2]
[381794594,1756350659054,-854.9,0.00021345,2]
[381794595,1756350659063,-480.0,0.00021345,2]
[381794596,1756350659072,-480.0,0.00021345,2]
[381794597,1756350659082,-878.32,0.00021345,2]
[381794598,1756350659091,-480.0,0.00021345,2]
[381794599,1756350659100,-480.0,0.00021345,2]
[381794600,1756350659109,-480.0,0.00021345,2]
[381794601,1756350659119,-2048.86,0.00021345,2]
[381794602,1756350659128,-1095.76,0.00021345,2]
[381794603,1756350659137,-480.0,0.00021345,2]
[381794604,1756350659147,-157.099635,0.00021345,2]
[381794605,1756350659156,-823.26,0.00021345,2]
[381794606,1756350659165,-480.0,0.00021345,2]
[381794607,1756350659174,-2543.88304,0.00021345,2]
[381794608,1756350659183,-151.0,0.00021345,2]
[381794609,1756350659194,-151.0,0.00021345,2]
[381794610,1756350659203,-480.0,0.00021345,2]
[381794611,1756350659213,-480.0,0.00021345,2]
[381794612,1756350659224,-2543.88304,0.00021345,2]
[381794613,1756350659233,-151.0,0.00021345,2]
[381794614,1756350659242,-151.0,0.00021345,2]
[381794615,1756350659251,-690.683299,0.00021345,2]
[381794616,1756350659260,-2543.88304,0.00021345,2]
[381794617,1756350659269,-151.0,0.00021345,2]
[381794618,1756350659278,-371.58743751,0.00021345,2]
[381794619,1756350659287,-151.0,0.00021345,2]
[381794620,1756350659299,-690.683299,0.00021345,2]
[381794621,1756350659309,-2543.88304,0.00021345,2]
[381794622,1756350659320,-690.683299,0.00021345,2]
[381794623,1756350659329,-151.0,0.00021345,2]
[381794624,1756350659338,-570.41,0.00021345,2]
[381794625,1756350659351,-690.683299,0.00021345,2]
[381794626,1756350659360,-490.5,0.00021345,2]
[381794627,1756350659369,-480.0,0.00021345,2]
[381794628,1756350659380,-480.0,0.00021345,2]
[381794629,1756350659390,-1472.23,0.00021345,2]
[381794630,1756350659399,-480.0,0.00021345,2]
[381794631,1756350659408,-151.0,0.00021345,2]
[381794632,1756350659417,-480.0,0.00021345,2]
[381794633,1756350659426,-151.0,0.00021345,2]
[381794634,1756350659435,-480.0,0.00021345,2]
[381794635,1756350659445,-480.0,0.00021345,2]
[381794636,1756350659454,-480.0,0.00021345,2]
[381794637,1756350659463,-4406.11,0.00021345,2]
[381794638,1756350659473,-480.0,0.00021345,2]
[381794639,1756350659482,-821.83,0.00021345,2]
[381794640,1756350659491,-480.0,0.00021345,2]
[381794641,1756350659500,-480.0,0.00021345,2]
[381794642,1756350659509,-480.0,0.00021345,2]
[381794643,1756350659518,-567.83,0.00021345,2]
[381794644,1756350659527,-480.0,0.00021345,2]
[381794645,1756350659536,-480.0,0.00021345,2]
[381794646,1756350659545,-554.25,0.00021345,2]
[381794647,1756350659554,-151.0,0.00021345,2]
[381794648,1756350659563,-480.0,0.00021345,2]
[381794649,1756350659571,-1068.644021,0.00021345,2]
[381794650,1756350659580,-151.0,0.00021345,2]
[381794651,1756350659589,-1068.644021,0.00021345,2]
[381794652,1756350659601,-458.670811,0.00021345,2]
[381794653,1756350659611,-480.0,0.00021345,2]
[381794654,1756350659620,-151.0,0.00021345,2]
[381794655,1756350659629,-151.0,0.00021345,2]
[381794656,1756350659639,-458.670811,0.00021345,2]
[381794657,1756350659649,-1068.644021,0.00021345,2]
[381794658,1756350659658,-1068.644021,0.00021345,2]
[381794659,1756350659667,-458.670811,0.00021345,2]
[381794660,1756350659676,-487.54,0.00021345,2]
[381794661,1756350659685,-2465.77,0.00021345,2]
[381794662,1756350659695,-480.0,0.00021345,2]
[381794663,1756350659705,-458.670811,0.00021345,2]
[381794664,1756350659714,-480.0,0.00021345,2]
[381794665,1756350659724,-480.0,0.00021345,2]
[381794666,1756350659733,-480.0,0.00021345,2]
[381794667,1756350659742,-151.0,0.00021345,2]
[381794668,1756350659751,-587.7,0.00021345,2]
[381794669,1756350659760,-151.0,0.00021345,2]
[381794670,1756350659769,-677.28,0.00021345,2]
[381794671,1756350659779,-230.572196,0.00021345,2]
[381794672,1756350659789,-151.0,0.00021345,2]
[381794673,1756350659798,-151.0,0.00021345,2]
[381794674,1756350659808,-480.0,0.00021345,2]
[381794675,1756350659818,-527.34,0.00021345,2]
[381794676,1756350659828,-151.0,0.00021345,2]
[381794677,1756350659838,-151.0,0.00021345,2]
[381794678,1756350659848,-151.0,0.00021345,2]
[381794679,1756350659857,-151.0,0.00021345,2]
[381794680,1756350659867,-151.0,0.00021345,2]
[381794681,1756350659876,-151.0,0.00021345,2]
[381794682,1756350659886,-151.0,0.00021345,2]
[381794683,1756350659896,-236.504301,0.00021345,2]
[381794684,1756350659905,-481.14720093,0.00021345,2]
[381794685,1756350659915,-151.0,0.00021345,2]
[381794686,1756350659925,-151.0,0.00021345,2]
[381794687,1756350659934,-480.0,0.00021345,2]
[381794688,1756350659943,-687.45,0.00021345,2]
[381794689,1756350659953,-3139.81875585,0.00021349,2]
[381794690,1756350659962,-1000.0,0.0002136,2]
[381794691,1756350659971,-335.6024457,0.0002137,2]
[381794692,1756350659981,-1073.4,0.0002137,2]
[381794693,1756350659991,-154.15133745,0.0002137,2]
[381794694,1756350660001,-1295.26,0.0002137,2]
[381794695,1756350660011,-349.52111818,0.0002137,2]
[381794696,1756350660020,-5526.4,0.0002137,2]
[381794697,1756350660029,-480.0,0.0002137,2]
[381794698,1756350660039,-2866.55,0.0002137,2]
[381794699,1756350660049,-696.75,0.0002137,2]
[381794700,1756350660058,-151.0,0.0002137,2]
[381794701,1756350660067,-209.364567,0.0002137,2]
[381794702,1756350660077,-209.364567,0.0002137,2]
[381794703,1756350660086,-570.376476,0.0002137,2]
[381794704,1756350660095,-209.364567,0.0002137,2]
[381794705,1756350660104,-570.376476,0.0002137,2]
[381794706,1756350660114,-209.364572,0.0002137,2]
[381794707,1756350660123,-570.376476,0.0002137,2]
[381794708,1756350660133,-570.376485,0.0002137,2]
[381794709,1756350660142,-218.437763,0.0002137,2]
[381794710,1756350660151,-151.0,0.0002137,2]
[381794711,1756350660160,-5312.84,0.0002137,2]
[381794712,1756350660169,-151.0,0.0002137,2]
[381794713,1756350660179,-151.0,0.0002137,2]
[381794714,1756350660188,-151.0,0.0002137,2]
[381794715,1756350660197,-246.04,0.0002137,2]
[381794716,1756350660207,-151.0,0.0002137,2]
[381794717,1756350660379,-480.0,0.0002137,2]
[381794718,1756350660390,-246.04,0.0002137,2]
[381794719,1756350660399,-246.04,0.0002137,2]
[381794720,1756350660409,-246.04,0.0002137,2]
[381794721,1756350660419,-151.0,0.0002137,2]
[381794722,1756350660429,-717.09,0.0002137,2]
[381794723,1756350660441,-151.0,0.0002137,2]
[381794724,1756350660450,-151.0,0.0002137,2]
[381794725,1756350660461,-1789.41,0.0002137,2]
[381794726,1756350660471,-459.61273669,0.00021372,2]
[381794727,1756350660483,-1000.0,0.00021372,2]
[381794728,1756350660496,-884.5330352,0.00021372,2]
[381794729,1756350660506,-500.0,0.00021373,2]
[381794730,1756350660516,-500.0,0.00021373,2]
[381794731,1756350660526,-500.0,0.00021373,2]
[381794732,1756350660535,-501.36557393,0.00021373,2]
[381794733,1756350660545,-500.0,0.00021373,2]
[381794734,1756350660556,-500.0,0.00021373,2]
[381794735,1756350660565,-500.0,0.00021373,2]
[381794736,1756350660577,-500.0,0.00021373,2]
[381794737,1756350660587,-500.0,0.00021373,2]
[381794738,1756350660598,-500.0,0.00021373,2]
[381794739,1756350660607,-649.91858222,0.00021373,2]
[381794740,1756350660618,-500.0,0.00021373,2]
[381794741,1756350660628,-500.0,0.00021373,2]
[381794742,1756350660638,-500.0,0.00021373,2]
[381794743,1756350660647,-165.91496876,0.00021373,2]
[381794744,1756350660659,-505.91835226,0.00021373,2]
[381794745,1756350660669,-500.0,0.00021373,2]
[381794746,1756350660679,-500.0,0.00021373,2]
[381794747,1756350660688,-500.0,0.00021373,2]
[381794748,1756350660697,-500.72602518,0.00021373,2]
[381794749,1756350660707,-501.53057373,0.00021373,2]
[381794750,1756350660716,-500.0,0.00021373,2]
[381794751,1756350660725,-500.0,0.00021373,2]
[381794752,1756350660735,-500.0,0.00021373,2]
[381794753,1756350660743,-500.0,0.00021373,2]
[381794754,1756350660753,-500.0,0.00021373,2]
[381794755,1756350660762,-151.0,0.00021386,2]
[381794756,1756350660771,-151.0,0.00021386,2]
[381794757,1756350660781,-3000.0,0.00021388,2]
[381794758,1756350660790,-12404.44261503,0.000214,2]
[381794759,1756350660800,-151.0,0.000214,4]
[381794760,1756350660809,-151.0,0.000214,4]
[381794761,1756350660818,-151.0,0.000214,3]
[381794762,1756350660827,-151.0,0.000214,2]
[381794763,1756350660837,-502.112103,0.000214,2]
[381794764,1756350660847,-502.112103,0.000214,2]
[381794765,1756350660856,-502.112103,0.000214,2]
[381794766,1756350660865,-502.112103,0.000214,2]
[381794767,1756350660875,-151.0,0.000214,2]
[381794768,1756350660886,-151.0,0.000214,2]
[381794769,1756350660895,-151.0,0.000214,2]
[381794770,1756350660904,-332.585677,0.000214,2]
[381794771,1756350660914,-332.585677,0.000214,2]
[381794772,1756350660925,-332.585677,0.000214,2]
[381794773,1756350660934,-332.585677,0.000214,2]
[381794774,1756350660946,-183.463776,0.000214,2]
[381794775,1756350660955,-183.463776,0.000214,2]
[381794776,1756350660964,-183.463776,0.000214,2]
[381794777,1756350660974,-183.463776,0.000214,2]
[381794778,1756350660983,-151.0,0.000214,2]
[381794779,1756350660993,-151.0,0.000214,2]
[381794780,1756350661002,-151.0,0.000214,2]
[381794781,1756350661012,-151.0,0.000214,2]
[381794782,1756350661021,-151.0,0.000214,2]
[381794783,1756350661031,-151.0,0.000214,2]
[381794784,1756350661040,-151.0,0.000214,2]
[381794785,1756350661049,-151.0,0.000214,2]
[381794786,1756350661059,-1127.772757,0.000214,2]
[381794787,1756350661068,-151.0,0.000214,2]
[381794788,1756350661078,-259.524667,0.000214,2]
[381794789,1756350661088,-259.524667,0.000214,2]
[381794790,1756350661097,-259.524667,0.000214,2]
[381794791,1756350661108,-259.524667,0.000214,2]
[381794792,1756350661119,-151.0,0.000214,2]
[381794793,1756350661129,-151.0,0.000214,2]
[381794794,1756350661140,-151.0,0.000214,2]
[381794795,1756350661151,-151.0,0.000214,2]
[381794796,1756350661162,-183.852809,0.000214,2]
[381794797,1756350661172,-183.852809,0.000214,2]
[381794798,1756350661182,-183.852809,0.000214,2]
[381794799,1756350661193,-183.852809,0.000214,2]
[381794800,1756350661204,-155.699444,0.000214,2]
[381794801,1756350661216,-151.0,0.000214,2]
[381794802,1756350661226,-151.0,0.000214,2]
[381794803,1756350661235,-151.0,0.000214,2]
[381794804,1756350661245,-151.0,0.000214,2]
[381794805,1756350661254,-151.446055,0.000214,2]
[381794806,1756350661264,-197.528318,0.000214,2]
[381794807,1756350661275,-197.528318,0.000214,2]
[381794808,1756350661285,-197.528318,0.000214,2]
[381794809,1756350661295,-197.528318,0.000214,2]
[381794810,1756350661308,-154.553026,0.000214,2]
[381794811,1756350661318,-1869.42369902,0.00021404,2]
[381794812,1756350661328,-2543.88304,0.00021423,2]
[381794813,1756350661337,-151.0,0.00021423,2]
[381794814,1756350661349,-151.0,0.00021423,2]
[381794815,1756350661360,-2543.88304,0.00021423,2]
[381794816,1756350661370,-151.0,0.00021423,2]
[381794817,1756350661380,-151.0,0.00021423,2]
[381794818,1756350661390,-690.683299,0.00021423,2]
[381794819,1756350661399,-277.52443,0.00021423,2]
[381794820,1756350661410,-2543.88304,0.00021423,2]
[381794821,1756350661419,-151.0,0.00021423,2]
[381794822,1756350661431,-690.683299,0.00021423,2]
[381794823,1756350661444,-2543.88304882,0.00021423,2]
[381794824,1756350661455,-690.683299,0.00021423,2]
[381794825,1756350661468,-151.0,0.00021423,2]
[381794826,1756350661479,-690.683308,0.00021423,2]
[381794827,1756350661489,-151.0,0.00021423,2]
[381794828,1756350661499,-151.0,0.00021423,2]
[381794829,1756350661508,-151.0,0.00021423,2]
[381794830,1756350661519,-1068.644021,0.00021423,2]
[381794831,1756350661528,-151.0,0.00021423,2]
[381794832,1756350661537,-1068.644021,0.00021423,2]
[381794833,1756350661547,-458.670811,0.00021423,2]
[381794834,1756350661558,-151.0,0.00021423,2]
[381794835,1756350661568,-152.724964,0.00021423,2]
[381794836,1756350661577,-458.670811,0.00021423,2]
[381794837,1756350661587,-1068.644021,0.00021423,2]
[381794838,1756350661598,-1068.644021,0.00021423,2]
[381794839,1756350661609,-458.670811,0.00021423,2]
[381794840,1756350661618,-458.670819,0.00021423,2]
[381794841,1756350661628,-151.0,0.00021423,2]
[381794842,1756350661639,-151.0,0.00021423,2]
[381794843,1756350661649,-151.0,0.00021423,2]
[381794844,1756350661659,-73709.50486948,0.0002144,2]
[381794845,1756350661676,-100452.80242688,0.0002144,2]
[381794846,1756350661687,-776.424,0.0002144,2]
[381794847,1756350661696,-776.424,0.0002144,2]
[381794848,1756350661706,-776.424,0.0002144,2]
[381794849,1756350661716,-776.424,0.0002144,2]
[381794850,1756350661726,-325.007098,0.0002144,2]
[381794851,1756350661736,-325.007098,0.0002144,2]
[381794852,1756350661746,-325.007098,0.0002144,2]
[381794853,1756350661755,-325.007098,0.0002144,2]
[381794854,1756350661765,-151.0,0.0002144,2]
[381794855,1756350661775,-151.0,0.0002144,2]
[381794856,1756350661785,-151.0,0.0002144,2]
[381794857,1756350661796,-151.0,0.0002144,2]
[381794858,1756350661806,-151.0,0.0002144,2]
[381794859,1756350661815,-151.0,0.0002144,2]
[381794860,1756350661824,-151.0,0.0002144,2]
[381794861,1756350661834,-151.0,0.0002144,2]
[381794862,1756350661844,-151.0,0.0002144,2]
[381794863,1756350661854,-151.0,0.0002144,2]
[381794864,1756350661863,-151.0,0.0002144,2]
[381794865,1756350661873,-151.0,0.0002144,2]
[381794866,1756350661882,-151.0,0.0002144,2]
[381794867,1756350661892,-267.344136,0.0002144,2]
[381794868,1756350661902,-259.524667,0.0002144,2]
[381794869,1756350661911,-259.524667,0.0002144,2]
[381794870,1756350661920,-259.524667,0.0002144,2]
[381794871,1756350661930,-259.524667,0.0002144,2]
[381794872,1756350661939,-151.0,0.0002144,2]
[381794873,1756350661948,-151.0,0.0002144,2]
[381794874,1756350661958,-151.0,0.0002144,2]
[381794875,1756350661968,-151.0,0.0002144,2]
[381794876,1756350661977,-183.852809,0.0002144,2]
[381794877,1756350661986,-183.852809,0.0002144,2]
[381794878,1756350661996,-183.852809,0.0002144,2]
[381794879,1756350662005,-183.852811,0.0002144,2]
[381794880,1756350662016,-151.0,0.0002144,2]
[381794881,1756350662026,-151.0,0.0002144,2]
[381794882,1756350662037,-151.0,0.0002144,2]
[381794883,1756350662048,-200.065498,0.0002144,2]
[381794884,1756350662058,-197.528318,0.0002144,2]
[381794885,1756350662068,-197.528318,0.0002144,2]
[381794886,1756350662078,-197.528318,0.0002144,2]
[381794887,1756350662087,-157.177667,0.0002144,2]
[381794888,1756350662097,-197.52831,0.0002144,2]
[381794889,1756350662108,-407.792203,0.0002144,2]
[381794890,1756350662117,-407.792203,0.0002144,2]
[381794891,1756350662127,-407.792203,0.0002144,2]
[381794892,1756350662138,-407.792204,0.0002144,2]
[381794893,1756350662147,-180.425793,0.0002144,2]
[381794894,1756350662156,-180.425793,0.0002144,2]
[381794895,1756350662166,-180.425793,0.0002144,2]
[381794896,1756350662176,-151.0,0.0002144,2]
[381794897,1756350662186,-180.425785,0.0002144,2]
[381794898,1756350662196,-151.0,0.0002144,2]
[381794899,1756350662205,-245.465512,0.0002144,2]
[381794900,1756350662214,-151.0,0.0002144,2]
[381794901,1756350662224,-943.286088,0.0002144,2]
[381794902,1756350662233,-271.424916,0.0002144,2]
[381794903,1756350662244,-271.424916,0.0002144,2]
[381794904,1756350662253,-151.0,0.0002144,2]
[381794905,1756350662263,-271.424916,0.0002144,2]
[381794906,1756350662272,-151.0,0.0002144,2]
[381794907,1756350662282,-271.424916,0.0002144,2]
[381794908,1756350662292,-500.0,0.00021473,2]
[381794909,1756350662307,-414.19006021,0.00021473,2]
[381794910,1756350662317,-500.0,0.00021473,2]
[381794911,1756350662327,-500.24833063,0.00021473,2]
[381794912,1756350662339,-4000.0,0.00021491,2]
[381794913,1756350662348,-32973.9064455,0.00021492,2]
[381794914,1756350662358,-203.47112669,0.00021493,2]
[381794915,1756350662368,-6080.92907614,0.00021494,2]
[381794916,1756350662381,-30637.26762004,0.00021494,2]
[381794917,1756350662396,-4800.0,0.00021494,2]
[381794918,1756350663072,-457.5620888,0.00020866,2]
[381794919,1756350663083,-480.0,0.00020957,2]
[381794920,1756350663093,-480.0,0.00021071,2]
[381794921,1756350663102,-481.64955776,0.00021071,2]
[381794922,1756350663113,-848.957471,0.00021152,2]
[381794923,1756350663122,-848.957471,0.00021152,2]
[381794924,1756350663133,-848.957471,0.00021252,2]
[381794925,1756350663144,-848.957471,0.00021252,2]
[381794926,1756350663154,-848.957471,0.00021263,2]
[381794927,1756350663163,-848.957471,0.00021263,2]
[381794928,1756350663173,-848.957471,0.00021263,2]
[381794929,1756350663183,-848.957471,0.00021263,2]
[381794930,1756350663193,-848.957471,0.00021345,2]
[381794931,1756350663202,-480.0,0.00021345,2]
[381794932,1756350663213,-848.957471,0.00021345,2]
[381794933,1756350663222,-37360.38249666,0.00021494,2]
[381794934,1756350712996,466.43319905,0.000199,2]
[381794935,1756350713019,59.04375044,0.000199,2]
[381794942,1756350888075,507.96105128,0.000199,2]
[381794949,1756351049850,504.41947145,0.00019823,2]
[381794950,1756351052282,2015.66020791,0.00019823,2]
[381794951,1756351062680,491.02901616,0.000199,2]
[381794958,1756351159262,717.96469771,0.00019823,2]
[381794959,1756351236317,474.66138223,0.000199,2]
[381794968,1756351275820,166.4701521,0.00013699,2]
[381794971,1756351395830,159.0,0.000201,4]
[381794972,1756351412962,458.83933632,0.000199,2]
[381794976,1756351465063,4444.9609344,0.00020111,2]
[381794977,1756351465087,555.0390656,0.00020111,2]
[381794978,1756351505039,2312.0,0.00020111,2]
[381794981,1756351515193,-308.13875686,0.00020516,2]
[381794982,1756351515215,-798.86124314,0.00020516,2]
[381794993,1756351586832,443.54469166,0.000199,2]
[381794995,1756351618162,-193.83489482,0.00020427,2]
[381794996,1756351618182,-56.26409434,0.00020427,2]
[381795001,1756351659273,432.46122927,0.0001949,2]
[381795008,1756351763952,428.75986874,0.000199,2]
[381795158,1756351833712,-159.79039188,0.00020325,2]
[381795160,1756351833722,-139.17881778,0.00020325,2]
[381795163,1756351833742,-20.61157409,0.00020325,2]
[381795165,1756351833755,-159.79039187,0.00020326,2]
[381795166,1756351833767,-159.79039187,0.00020326,2]
[381795167,1756351833776,-1959.23734776,0.00020425,2]
[381795168,1756351833786,-300.0,0.00020425,2]
[381795169,1756351833795,-300.0,0.00020425,2]
[381795170,1756351833805,-300.0,0.00020425,2]
[381795171,1756351833814,-300.0,0.00020425,2]
[381795172,1756351833824,-1200.0,0.00020425,2]
[381795173,1756351833833,-619.60149318,0.00020425,2]
[381795174,1756351833843,-500.0,0.00020426,2]
[381795175,1756351833853,-5387.93918166,0.00020426,2]
[381795176,1756351833864,-406.2216993,0.00020426,2]
[381795262,1756351838468,-500.0,0.00020424,2]
[381795264,1756351838478,-324.1217848,0.00020424,2]
[381795266,1756351838487,-500.0,0.00020424,2]
[381795268,1756351838496,-639.85155687,0.00020426,2]
[381795270,1756351838507,-281.22344133,0.00020426,2]
[381795272,1756351838517,-760.34656117,0.00020427,2]
[381795284,1756351838632,-4824.85145266,0.00020427,2]
[381795285,1756351838641,-1200.0,0.00020524,2]
[381795286,1756351838650,-480.0,0.00020524,2]
[381795287,1756351838659,-946.45,0.00020524,2]
[381795288,1756351838669,-1572.79,0.00020524,2]
[381795289,1756351838681,-2996.24,0.00020524,2]
[381795290,1756351838690,-480.0,0.00020524,2]
[381795291,1756351838702,-2786.29,0.00020524,2]
[381795292,1756351838712,-480.0,0.00020524,2]
[381795293,1756351838721,-480.0,0.00020524,2]
[381795294,1756351838730,-859.04,0.00020524,2]
[381795295,1756351838739,-480.0,0.00020524,2]
[381795296,1756351838749,-480.0,0.00020524,2]
[381795297,1756351838760,-480.0,0.00020524,2]
[381795298,1756351838770,-1034.46,0.00020524,2]
[381795299,1756351838779,-480.0,0.00020524,2]
[381795300,1756351838789,-480.0,0.00020524,2]
[381795301,1756351838799,-480.0,0.00020524,2]
[381795302,1756351838808,-480.0,0.00020524,2]
[381795303,1756351838817,-480.0,0.00020524,2]
[381795304,1756351838828,-1020.79,0.00020524,2]
[381795305,1756351838838,-390.54283234,0.00020524,2]
[381795306,1756351838847,-480.0,0.00020524,2]
[381795307,1756351838856,-287.2809247,0.00020524,2]
[381795308,1756351838866,-495.58,0.00020524,2]
[381795309,1756351838876,-480.0,0.00020524,2]
[381795310,1756351838885,-480.0,0.00020524,2]
[381795311,1756351838894,-480.0,0.00020524,2]
[381795312,1756351838903,-1379.45,0.00020618,3]
[381795313,1756351838913,-689.72,0.00020618,3]
[381795314,1756351838922,-344.86,0.00020618,3]
[381795315,1756351838932,-172.43,0.00020618,3]
[381795316,1756351838941,-1266.29,0.00020627,2]
[381795317,1756351838950,-480.0,0.00020627,2]
[381795318,1756351838959,-4547.58,0.00020627,2]
[381795319,1756351838968,-480.0,0.00020627,2]
[381795320,1756351838979,-820.35,0.00020627,2]
[381795321,1756351838988,-480.0,0.00020628,2]
[381795322,1756351838997,-1787.86,0.00020628,2]